{"text_format":"1","workbook":"xlsx","n_sheets":3,"sheets":["CSV","取組実績報告書（控え）","自分でCSVデータを取り込む方法"],"not_rendered":{"charts":0,"images":14,"macros":1,"external_links":0,"defined_names":2,"comments":0,"pivot_tables":0},"unopened":[],"bounds":{"document_bytes":16777216,"sheet_cells":100000,"rows_first":2000,"rows_last":500,"rows_between":2000,"halvings":0,"cell_chars":16384,"cell_head_chars":4096},"cells_cut":0,"cells_raw":0,"read":"whole","date_system":"1900"}

{"sheet":"CSV","index":0,"n_rows":0,"n_cols":0,"rows_kept":0,"cut":false,"hidden":false,"merged":[]}

{"sheet":"取組実績報告書（控え）","index":1,"n_rows":212,"n_cols":47,"rows_kept":212,"cut":false,"hidden":false,"merged":[[53,36,53,43],[100,36,100,43],[54,1,54,2],[54,4,54,35],[54,36,54,43],[62,8,63,42],[62,1,63,7],[101,4,101,35],[188,29,188,32],[188,33,188,39],[188,40,188,43],[187,1,187,10],[167,11,167,21],[167,22,167,32],[167,33,167,43],[164,11,164,43],[178,11,178,43],[179,11,179,43],[180,11,180,43],[183,1,183,10],[183,11,183,21],[183,22,183,32],[183,33,183,43],[178,1,178,10],[200,11,200,43],[203,1,203,10],[203,11,203,43],[189,1,189,10],[189,11,189,17],[189,18,189,21],[189,22,189,28],[189,29,189,32],[189,33,189,39],[189,40,189,43],[193,1,193,10],[193,11,193,43],[194,1,194,10],[195,1,195,10],[194,11,194,43],[195,11,195,43],[53,1,53,2],[53,4,53,35],[100,1,100,2],[100,4,100,35],[17,1,17,2],[17,4,17,35],[26,1,26,22],[20,1,20,2],[20,4,20,35],[91,4,91,43],[91,1,92,2],[90,4,90,43],[92,4,92,43],[89,1,90,2],[89,4,89,43],[17,36,17,43],[18,36,18,43],[19,36,19,43],[20,36,20,43],[24,23,24,42],[93,36,94,43],[95,4,95,43],[96,4,96,43],[98,36,98,43],[45,1,46,2],[45,4,46,35],[45,36,45,43],[46,36,46,41],[174,1,174,10],[175,1,175,10],[175,11,175,43],[170,1,170,10],[162,11,162,43],[167,1,167,10],[164,1,164,10],[162,1,162,10],[168,11,168,17],[168,18,168,21],[168,22,168,28],[168,29,168,32],[168,33,168,39],[168,40,168,43],[169,11,169,17],[169,18,169,21],[169,22,169,28],[169,29,169,32],[169,33,169,39],[168,1,168,10],[12,33,12,42],[13,23,13,30],[13,31,13,32],[13,33,13,40],[13,41,13,42],[18,1,18,2],[18,4,18,35],[25,1,25,22],[19,1,19,2],[19,4,19,35],[15,1,16,2],[15,4,16,35],[15,36,15,43],[16,36,16,41],[16,42,16,43],[11,1,14,2],[68,1,68,2],[68,4,68,35],[87,1,88,2],[87,4,88,35],[68,36,68,43],[87,36,88,43],[71,4,71,35],[58,9,58,21],[58,7,58,8],[58,1,58,6],[72,4,74,43],[75,4,75,9],[75,10,75,43],[5,1,6,6],[5,7,6,7],[5,8,6,20],[5,21,6,25],[5,26,6,26],[5,27,6,43],[27,1,27,22],[24,1,24,22],[47,1,48,2],[47,4,48,35],[47,36,47,43],[48,36,48,41],[48,42,48,43],[30,23,30,24],[29,23,29,24],[28,23,28,24],[27,23,27,24],[26,23,26,24],[25,23,25,24],[46,42,46,43],[28,1,28,22],[29,1,29,22],[30,1,30,22],[12,23,12,32],[93,1,94,2],[93,4,94,35],[95,1,97,2],[151,1,152,6],[101,1,110,2],[98,4,98,35],[98,1,98,2],[151,7,152,7],[151,8,152,20],[151,21,152,25],[151,26,152,26],[151,27,152,43],[139,25,141,43],[97,4,97,9],[102,4,108,43],[109,4,109,9],[173,1,173,10],[173,11,173,43],[174,11,174,43],[153,1,154,6],[153,7,154,7],[153,8,154,20],[153,21,154,25],[153,26,154,26],[163,1,163,10],[163,11,163,43],[153,27,154,43],[209,1,209,10],[209,11,209,43],[170,11,170,17],[170,18,170,21],[170,22,170,28],[170,29,170,32],[170,33,170,39],[170,40,170,43],[184,1,184,10],[184,11,184,17],[184,18,184,21],[184,22,184,28],[184,29,184,32],[184,33,184,39],[184,40,184,43],[187,40,187,43],[188,1,188,10],[188,11,188,17],[188,18,188,21],[188,22,188,28],[200,1,200,10],[198,1,198,10],[198,11,198,43],[199,1,199,10],[211,37,211,44],[211,32,211,36],[3,31,3,37],[3,28,3,30],[25,25,25,42],[26,25,26,42],[27,25,27,42],[28,25,28,42],[29,25,29,42],[30,25,30,42],[97,10,97,43],[210,1,210,10],[210,11,210,43],[205,1,205,10],[205,11,205,43],[208,1,208,10],[208,11,208,43],[204,1,204,10],[187,18,187,21],[187,22,187,28],[187,29,187,32],[204,11,204,43],[149,36,149,43],[191,36,191,43],[186,33,186,39],[186,40,186,43],[187,11,187,17],[109,10,109,43],[144,35,144,44],[144,28,144,34],[187,33,187,39],[169,40,169,43],[199,11,199,43],[185,1,185,10],[185,11,185,17],[185,18,185,21],[185,22,185,28],[185,29,185,32],[185,33,185,39],[185,40,185,43],[186,1,186,10],[186,11,186,17],[186,18,186,21],[186,22,186,28],[186,29,186,32],[179,1,179,10],[180,1,180,10],[169,1,169,10]]}
[]
[]
[]
[null,null,null,null,null,null,null,null,null,null,null,null,null,null,null,null,null,null,null,null,null,null,null,null,null,null,null,null,"ID：",null,null,{"$f":"CSV!K5","v":0}]
[]
[null,"保険証記号",null,null,null,null,null,":",null,null,null,null,null,null,null,null,null,null,null,null,null,"事業所名称",null,null,null,null,"："]
[]
[]
[]
[]
[]
[null,1]
[null,null,null,null,null,null,null,null,null,null,null,null,null,null,null,null,null,null,null,null,null,null,null,"①従業員数(40-74歳)",null,null,null,null,null,null,null,null,null,"②健診受診者数(40-74歳)"]
[null,null,null,null,null,null,null,null,null,null,null,null,null,null,null,null,null,null,null,null,null,null,null,{"$f":"CSV!P5","v":0},null,null,null,null,null,null,null,"人",null,{"$f":"CSV!Q5","v":0},null,null,null,null,null,null,null,"人"]
[]
[null,2,null,null,"令和５年度の貴社の特定保健指導の利用率をご記入ください。\n　（該当者がいなかった場合は「なし」、分からない場合は「不明」とご記入ください。）",null,null,null,null,null,null,null,null,null,null,null,null,null,null,null,null,null,null,null,null,null,null,null,null,null,null,null,null,null,null,null,"↓利用率"]
[null,null,null,null,null,null,null,null,null,null,null,null,null,null,null,null,null,null,null,null,null,null,null,null,null,null,null,null,null,null,null,null,null,null,null,null,{"$f":"CSV!R5","v":0},null,null,null,null,null,"％"]
[null,3,null,null,null,null,null,null,null,null,null,null,null,null,null,null,null,null,null,null,null,null,null,null,null,null,null,null,null,null,null,null,null,null,null,null,{"$f":"CSV!S5","v":0}]
[null,4,null,null,null,null,null,null,null,null,null,null,null,null,null,null,null,null,null,null,null,null,null,null,null,null,null,null,null,null,null,null,null,null,null,null,{"$f":"CSV!T5","v":0}]
[null,5,null,null,null,null,null,null,null,null,null,null,null,null,null,null,null,null,null,null,null,null,null,null,null,null,null,null,null,null,null,null,null,null,null,null,{"$f":"CSV!U5","v":0}]
[null,6,null,null,null,null,null,null,null,null,null,null,null,null,null,null,null,null,null,null,null,null,null,null,null,null,null,null,null,null,null,null,null,null,null,null,{"$f":"CSV!V5","v":0}]
[]
[]
["　　取組により、職場でどのような変化がありましたか？（該当箇所に○をつけてください）"]
[null,"質問事項",null,null,null,null,null,null,null,null,null,null,null,null,null,null,null,null,null,null,null,null,null,"回答内容"]
[null," ① 業績・生産性の向上",null,null,null,null,null,null,null,null,null,null,null,null,null,null,null,null,null,null,null,null,null,null,null,{"$f":"CSV!W5","v":0}]
[null," ② 職場内モチベーションの向上",null,null,null,null,null,null,null,null,null,null,null,null,null,null,null,null,null,null,null,null,null,null,null,{"$f":"CSV!X5","v":0}]
[null," ③ 体調不良者の減少",null,null,null,null,null,null,null,null,null,null,null,null,null,null,null,null,null,null,null,null,null,null,null,{"$f":"CSV!Y5","v":0}]
[null," ④ 職場の雰囲気の改善",null,null,null,null,null,null,null,null,null,null,null,null,null,null,null,null,null,null,null,null,null,null,null,{"$f":"CSV!Z5","v":0}]
[null," ⑤ 欠勤の減少",null,null,null,null,null,null,null,null,null,null,null,null,null,null,null,null,null,null,null,null,null,null,null,{"$f":"CSV!AA5","v":0}]
[null," ⑥ 社内コミュニケーションの向上",null,null,null,null,null,null,null,null,null,null,null,null,null,null,null,null,null,null,null,null,null,null,null,{"$f":"CSV!AB5","v":0}]
[]
[]
[]
[]
[]
[]
[]
[]
[]
[]
[]
[]
[]
[]
[null,1,null,null,"令和６年度の健診受診率の目標値をご記入ください。\n　（全員受診の場合は、１００％とご記入ください。）",null,null,null,null,null,null,null,null,null,null,null,null,null,null,null,null,null,null,null,null,null,null,null,null,null,null,null,null,null,null,null,"↓目標値"]
[null,null,null,null,null,null,null,null,null,null,null,null,null,null,null,null,null,null,null,null,null,null,null,null,null,null,null,null,null,null,null,null,null,null,null,null,{"$f":"CSV!AC5","v":0},null,null,null,null,null,"％"]
[null,2,null,null,"令和６年度の特定保健指導の利用率の目標値をご記入ください。\n　（対象者がいない場合は、いた場合を想定した利用率をご記入ください。）",null,null,null,null,null,null,null,null,null,null,null,null,null,null,null,null,null,null,null,null,null,null,null,null,null,null,null,null,null,null,null,"↓目標値"]
[null,null,null,null,null,null,null,null,null,null,null,null,null,null,null,null,null,null,null,null,null,null,null,null,null,null,null,null,null,null,null,null,null,null,null,null,{"$f":"CSV!AD5","v":0},null,null,null,null,null,"％"]
[]
[]
[]
[]
[null,3,null,null,null,null,null,null,null,null,null,null,null,null,null,null,null,null,null,null,null,null,null,null,null,null,null,null,null,null,null,null,null,null,null,null,{"$f":"CSV!AE5","v":0}]
[null,4,null,null,null,null,null,null,null,null,null,null,null,null,null,null,null,null,null,null,null,null,null,null,null,null,null,null,null,null,null,null,null,null,null,null,{"$f":"CSV!AF5","v":0}]
[]
[]
[]
[null,"派遣希望：",null,null,null,null,null,null,null,{"$f":"CSV!AG5","v":0}]
[]
[]
[]
[null,"派遣希望時期：",null,null,null,null,null,null,{"$f":"CSV!AH5","v":0}]
[]
[]
[]
[]
[]
[null,"★",null,null,"「令和６年度健康づくり優良事業所」の認定を希望しますか？",null,null,null,null,null,null,null,null,null,null,null,null,null,null,null,null,null,null,null,null,null,null,null,null,null,null,null,null,null,null,null,{"$f":"CSV!AI5","v":0}]
[]
[]
[null,null,null,null,"「いいえ」とご記入の場合、その理由をご回答ください。（複数可）"]
[null,null,null,null,{"$f":"IF(AK69=\"2.いいえ\",CSV!AJ5,\"\")","v":""}]
[]
[]
[null,null,null,null,"その他：",null,null,null,null,null,{"$f":"IF(CSV!AK5=\"\",\"\",CSV!AK5)","v":""}]
[]
[]
[]
[]
[]
[]
[]
[]
[]
[null,"各設問に該当する項目に〇または記入をお願いします。"]
[]
[null,1,null,null,"健診の結果、二次検査（要再検／要精密検査）や治療が必要な従業員に対し、\n受診勧奨をしていますか？（対象者がいない場合は、いた場合を想定してご記入ください。）",null,null,null,null,null,null,null,null,null,null,null,null,null,null,null,null,null,null,null,null,null,null,null,null,null,null,null,null,null,null,null,{"$f":"IF(AK69=\"2.いいえ\",\"\",CSV!AL5)","v":0}]
[]
[null,2,null,null,"従業員のご家族（被扶養者）への健診の受診促進（40歳以上）について、該当するものをご回答\nください。(複数可)"]
[null,null,null,null,{"$f":"IF(AK69=\"2.いいえ\",\"\",CSV!AM5)","v":0}]
[null,3,null,null,"従業員本人（被保険者）に対する協会けんぽの特定保健指導について、該当するものに全て✔をいれて\nください。対象者がいない場合には、ルールの整備・明文化されているものをご回答ください。(複数可)"]
[null,null,null,null,{"$f":"IF(AK69=\"2.いいえ\",\"\",CSV!AN5)","v":0}]
[null,4,null,null,"健康づくりに関する知識の習得に努めていますか？\n（協会けんぽが実施する健康保険委員向けセミナー等、産業保健総合支援センターの研修会、福岡支部メールマガジンの登録など）　",null,null,null,null,null,null,null,null,null,null,null,null,null,null,null,null,null,null,null,null,null,null,null,null,null,null,null,null,null,null,null,{"$f":"IF(AK69=\"2.いいえ\",\"\",CSV!AO5)","v":0}]
[]
[null,5,null,null," 喫煙率を下げるための取組について、該当するものをご回答ください。(複数可)",null,null,null,null,null,null,null,null,null,null,null,null,null,null,null,null,null,null,null,null,null,null,null,null,null,null,null,null,null,null,null,null,null,null,null,null,null,null,null,null,null,"\n"]
[null,null,null,null,{"$f":"IF(AK69=\"2.いいえ\",\"\",CSV!AP5)","v":0}]
[null,null,null,null,"その他：",null,null,null,null,null,{"$f":"IF(CSV!AQ5=\"\",\"\",CSV!AQ5)","v":""}]
[null,6,null,null,"メンタルヘルス対策に関する取組がありますか？\n　　（例：管理・監督者研修やメンタルヘルス研修の実施、パンフレットの配布）",null,null,null,null,null,null,null,null,null,null,null,null,null,null,null,null,null,null,null,null,null,null,null,null,null,null,null,null,null,null,null,{"$f":"IF(AK69=\"2.いいえ\",\"\",CSV!AR5)","v":0}]
[]
[null,7,null,null,"「福岡県働く世代をがんから守るがん対策サポート事業」に登録していますか？",null,null,null,null,null,null,null,null,null,null,null,null,null,null,null,null,null,null,null,null,null,null,null,null,null,null,null,null,null,null,null,{"$f":"IF(AK69=\"2.いいえ\",\"\",CSV!AS5)","v":0}]
[null,9,null,null,"以下について、行っている取組をご回答ください。(複数可)"]
[null,null,null,null,{"$f":"IF(AK69=\"2.いいえ\",\"\",CSV!AT5)","v":0}]
[]
[]
[]
[]
[]
[]
[null,null,null,null,"その他：",null,null,null,null,null,{"$f":"IF(AK69=\"2.いいえ\",\"\",CSV!AU5)","v":0}]
[]
[]
[]
[]
[]
[]
[]
[]
[]
[]
[]
[]
[]
[]
[]
[]
[]
[]
[]
[]
[]
[]
[]
[]
[]
[]
[]
[]
[]
[null,null,null,null,null,null,null,null,null,null,null,null,null,null,null,null,null,null,null,null,null,null,null,null,null,{"$f":"IF(AK69=\"2.いいえ\",\"\",CSV!AV5)","v":0}]
[]
[]
[]
[]
[null,null,null,null,null,null,null,null,null,null,null,null,null,null,null,null,null,null,null,null,null,null,null,null,null,null,null,null,"回答日時：",null,null,null,null,null,null,{"$f":"CSV!CG5","v":"00:00:00"}]
[]
[]
[]
[]
[null,null,null,null,null,null,null,null,null,null,null,null,null,null,null,null,null,null,null,null,null,null,null,null,null,null,null,null,null,null,null,null,null,null,null,null,{"$f":"CSV!K5","v":0}]
[]
[null,"登録証番号",null,null,null,null,null,":",null,null,null,null,null,null,null,null,null,null,null,null,null,"事業所名称",null,null,null,null,"："]
[]
[null,"電話番号",null,null,null,null,null,":",null,null,null,null,null,null,null,null,null,null,null,null,null,"ご担当者名",null,null,null,null,"："]
[]
[]
[]
[]
[]
[]
[]
["１.特定健診の受診率向上に関する取組"]
[null,"宣言内容",null,null,null,null,null,null,null,null,null,{"$f":"IF(CSV!AW5=\"\",\"\",CSV!AW5)","v":""}]
[null,"実施した取組",null,null,null,null,null,null,null,null,null,{"$f":"IF(L163=\"\",\"\",CSV!AX5)","v":""}]
[null,"取組による効果",null,null,null,null,null,null,null,null,null,{"$f":"IF(L163=\"\",\"\",CSV!AY5)","v":""}]
[]
[null,"（特定健診受診状況［令和５年度］）"]
[null,"対象者",null,null,null,null,null,null,null,null,null,"対象者数（A)",null,null,null,null,null,null,null,null,null,null,"受診者数（B）",null,null,null,null,null,null,null,null,null,null,"受診率（B÷A×100）"]
[null,"従業員",null,null,null,null,null,null,null,null,null,{"$f":"CSV!AZ5","v":0},null,null,null,null,null,null,"人",null,null,null,{"$f":"CSV!BA5","v":0},null,null,null,null,null,null,"人",null,null,null,{"$f":"IF(OR(L169=\"\",W169=\"\"),\"\",W169/L169)","v":{"$error":"#DIV/0!"}},null,null,null,null,null,null,"％"]
[null,"被扶養者",null,null,null,null,null,null,null,null,null,{"$f":"CSV!BB5","v":0},null,null,null,null,null,null,"人",null,null,null,{"$f":"CSV!BC5","v":0},null,null,null,null,null,null,"人",null,null,null,{"$f":"IF(OR(L170=\"\",W170=\"\"),\"\",W170/L170)","v":{"$error":"#DIV/0!"}},null,null,null,null,null,null,"％"]
[null,"計",null,null,null,null,null,null,null,null,null,{"$f":"SUM(L169:R170)","v":0},null,null,null,null,null,null,"人",null,null,null,{"$f":"SUM(W169:AC170)","v":0},null,null,null,null,null,null,"人",null,null,null,{"$f":"IF(OR(L171=\"\",W171=\"\"),\"\",W171/L171)","v":{"$error":"#DIV/0!"}},null,null,null,null,null,null,"％"]
[]
["２.特定保健指導の利用率向上に関する取組"]
[null,"宣言内容",null,null,null,null,null,null,null,null,null,{"$f":"IF(CSV!BD5=\"\",\"\",CSV!BD5)","v":""}]
[null,"実施した取組",null,null,null,null,null,null,null,null,null,{"$f":"IF(L174=\"\",\"\",CSV!BE5)","v":""}]
[null,"取組による効果",null,null,null,null,null,null,null,null,null,{"$f":"IF(L174=\"\",\"\",CSV!BF5)","v":""}]
[]
["３.がん検診の受診率向上に関する取組"]
[null,"宣言内容",null,null,null,null,null,null,null,null,null,{"$f":"IF(CSV!BG5=\"\",\"\",CSV!BG5)","v":""}]
[null,"実施した取組",null,null,null,null,null,null,null,null,null,{"$f":"IF(L179=\"\",\"\",CSV!BH5)","v":""}]
[null,"取組による効果",null,null,null,null,null,null,null,null,null,{"$f":"IF(L179=\"\",\"\",CSV!BI5)","v":""}]
[]
[null,"（がん検診等受診状況［令和５年度］）"]
[null,"検診の種類",null,null,null,null,null,null,null,null,null,"対象者数（A)",null,null,null,null,null,null,null,null,null,null,"受診者数（B）",null,null,null,null,null,null,null,null,null,null,"受診率（B÷A×100）"]
[null,"胃がん検診",null,null,null,null,null,null,null,null,null,{"$f":"IF(CSV!BJ5=\"\",\"\",CSV!BJ5)","v":""},null,null,null,null,null,null,"人",null,null,null,{"$f":"IF(CSV!BK5=\"\",\"\",CSV!BK5)","v":""},null,null,null,null,null,null,"人",null,null,null,{"$f":"IF(OR(L185=\"\",W185=\"\"),\"\",W185/L185)","v":""},null,null,null,null,null,null,"％"]
[null,"大腸がん検診",null,null,null,null,null,null,null,null,null,{"$f":"IF(CSV!BL5=\"\",\"\",CSV!BL5)","v":""},null,null,null,null,null,null,"人",null,null,null,{"$f":"IF(CSV!BM5=\"\",\"\",CSV!BM5)","v":""},null,null,null,null,null,null,"人",null,null,null,{"$f":"IF(OR(L186=\"\",W186=\"\"),\"\",W186/L186)","v":""},null,null,null,null,null,null,"％"]
[null,"肺がん検診",null,null,null,null,null,null,null,null,null,{"$f":"IF(CSV!BN5=\"\",\"\",CSV!BN5)","v":""},null,null,null,null,null,null,"人",null,null,null,{"$f":"IF(CSV!BO5=\"\",\"\",CSV!BO5)","v":""},null,null,null,null,null,null,"人",null,null,null,"",null,null,null,null,null,null,"％"]
[null,"乳がん検診",null,null,null,null,null,null,null,null,null,{"$f":"IF(CSV!BP5=\"\",\"\",CSV!BP5)","v":""},null,null,null,null,null,null,"人",null,null,null,{"$f":"IF(CSV!BQ5=\"\",\"\",CSV!BQ5)","v":""},null,null,null,null,null,null,"人",null,null,null,"",null,null,null,null,null,null,"％"]
[null,"子宮頸がん検診",null,null,null,null,null,null,null,null,null,{"$f":"IF(CSV!BR5=\"\",\"\",CSV!BR5)","v":""},null,null,null,null,null,null,"人",null,null,null,{"$f":"IF(CSV!BS5=\"\",\"\",CSV!BS5)","v":""},null,null,null,null,null,null,"人",null,null,null,"",null,null,null,null,null,null,"％"]
[null,"計",null,null,null,null,null,null,null,null,null,{"$f":"SUM(L185:R189)","v":0},null,null,null,null,null,null,"人",null,null,null,{"$f":"SUM(W185:AC189)","v":0},null,null,null,null,null,null,"人",null,null,null,{"$error":"#DIV/0!"},null,null,null,null,null,null,"％"]
[]
[null,null,null,null,null,null,null,null,null,null,null,null,null,null,null,null,null,null,null,null,null,null,null,null,null,null,null,null,null,null,null,null,null,null,null,null,{"$f":"CSV!K5","v":0}]
["４.食生活の改善に関する取組"]
[null,"宣言内容",null,null,null,null,null,null,null,null,null,{"$f":"IF(CSV!BT5=\"\",\"\",CSV!BT5)","v":""}]
[null,"実施した取組",null,null,null,null,null,null,null,null,null,{"$f":"IF(L194=\"\",\"\",CSV!BU5)","v":""}]
[null,"取組による効果",null,null,null,null,null,null,null,null,null,{"$f":"IF(L194=\"\",\"\",CSV!BV5)","v":""}]
[]
["５.運動習慣の定着に関する取組"]
[null,"宣言内容",null,null,null,null,null,null,null,null,null,{"$f":"IF(CSV!BW5=\"\",\"\",CSV!BW5)","v":""}]
[null,"実施した取組",null,null,null,null,null,null,null,null,null,{"$f":"IF(L199=\"\",\"\",CSV!BX5)","v":""}]
[null,"取組による効果",null,null,null,null,null,null,null,null,null,{"$f":"IF(L199=\"\",\"\",CSV!BY5)","v":""}]
[]
["６.禁煙の促進、受動喫煙の防止に関する取組"]
[null,"宣言内容",null,null,null,null,null,null,null,null,null,{"$f":"IF(CSV!BZ5=\"\",\"\",CSV!BZ5)","v":""}]
[null,"実施した取組",null,null,null,null,null,null,null,null,null,{"$f":"IF(L204=\"\",\"\",CSV!CA5)","v":""}]
[null,"取組による効果",null,null,null,null,null,null,null,null,null,{"$f":"IF(L204=\"\",\"\",CSV!CB5)","v":""}]
[]
["７.その他の健康づくりに関する取組（メンタルヘルス、歯科衛生等）"]
[null,"宣言内容",null,null,null,null,null,null,null,null,null,{"$f":"IF(CSV!CC5=\"\",\"\",CSV!CC5)","v":""}]
[null,"実施した取組",null,null,null,null,null,null,null,null,null,{"$f":"IF(L209=\"\",\"\",CSV!CD5)","v":""}]
[null,"取組による効果",null,null,null,null,null,null,null,null,null,{"$f":"IF(L209=\"\",\"\",CSV!CE5)","v":""}]
[null,null,null,null,null,null,null,null,null,null,null,null,null,null,null,null,null,null,null,null,null,null,null,null,null,null,null,null,null,null,null,null,"回答日時：",null,null,null,null,{"$f":"CSV!CG5","v":"00:00:00"}]

{"sheet":"自分でCSVデータを取り込む方法","index":2,"n_rows":0,"n_cols":0,"rows_kept":0,"cut":false,"hidden":false,"merged":[]}